fUST/lending_fUST_20260526
["ID","MTS","AMOUNT","RATE_DAILY","PERIOD"]
[423025508,1779768639000,-500.0,8.219e-05,2]
[423025512,1779768639000,-602.91,8.219e-05,2]
[423025514,1779768639000,-500.0,8.219e-05,2]
[423025519,1779768639000,-500.0,8.219e-05,2]
[423025506,1779768639000,-631.88,8.219e-05,2]
[423025513,1779768639000,-500.0,8.219e-05,2]
[423025515,1779768639000,-500.0,8.219e-05,2]
[423025505,1779768639000,-1184.32,8.219e-05,2]
[423025509,1779768639000,-500.0,8.219e-05,2]
[423025507,1779768639000,-1036.32633811,8.219e-05,2]
[423025510,1779768639000,-500.0,8.219e-05,2]
[423025526,1779768639000,-500.0,8.219e-05,2]
[423025516,1779768639000,-500.0,8.219e-05,2]
[423025527,1779768639000,-500.0,8.219e-05,2]
[423025525,1779768639000,-500.83940402,8.219e-05,2]
[423025518,1779768639000,-500.0,8.219e-05,2]
[423025524,1779768639000,-500.0,8.219e-05,2]
[423025523,1779768639000,-500.0,8.219e-05,2]
[423025511,1779768639000,-837.05,8.219e-05,2]
[423025555,1779768639000,-500.0,8.219e-05,2]
[423025599,1779768639000,-500.0,8.493e-05,2]
[423025556,1779768639000,-316.95958346,8.219e-05,2]
[423025583,1779768639000,-500.0,8.493e-05,2]
[423025591,1779768639000,-500.0,8.493e-05,2]
[423025593,1779768639000,-500.0,8.493e-05,2]
[423025604,1779768639000,-1184.32,8.493e-05,2]
[423025605,1779768639000,-631.88,8.493e-05,2]
[423025603,1779768639000,-2174.22,8.493e-05,2]
[423025598,1779768639000,-500.0,8.493e-05,2]
[423025597,1779768639000,-500.0,8.493e-05,2]
[423025601,1779768639000,-500.0,8.493e-05,2]
[423025595,1779768639000,-500.0,8.493e-05,2]
[423025592,1779768639000,-500.0,8.493e-05,2]
[423025600,1779768639000,-500.0,8.493e-05,2]
[423025594,1779768639000,-500.0,8.493e-05,2]
[423025602,1779768639000,-794.94,8.493e-05,2]
[423025606,1779768639000,-500.0,8.493e-05,2]
[423025608,1779768639000,-602.91,8.493e-05,2]
[423025609,1779768639000,-500.0,8.493e-05,2]
[423025610,1779768639000,-500.0,8.493e-05,2]
[423025607,1779768639000,-837.05,8.493e-05,2]
[423025616,1779768639000,-809.86,8.493e-05,2]
[423025612,1779768639000,-641.85,8.493e-05,2]
[423025615,1779768639000,-624.03,8.493e-05,2]
[423025611,1779768639000,-1331.11,8.493e-05,2]
[423025613,1779768639000,-667.53,8.493e-05,2]
[423025614,1779768639000,-500.0,8.493e-05,2]
[423025617,1779768639000,-870.31,8.493e-05,2]
[423025558,1779768639000,-500.0,8.219e-05,2]
[423025586,1779768639000,-500.0,8.493e-05,2]
[423025587,1779768639000,-500.0,8.493e-05,2]
[423025596,1779768639000,-500.0,8.493e-05,2]
[423025585,1779768639000,-500.0,8.493e-05,2]
[423025589,1779768639000,-732.69,8.493e-05,2]
[423025559,1779768639000,-500.0,8.219e-05,2]
[423025560,1779768639000,-1145.4,8.219e-05,2]
[423025562,1779768639000,-13266.02,8.219e-05,2]
[423025563,1779768639000,-500.0,8.219e-05,2]
[423025565,1779768639000,-501.91044933,8.252e-05,2]
[423025564,1779768639000,-500.0,8.219e-05,2]
[423025561,1779768639000,-316.52383165,8.219e-05,2]
[423025566,1779768639000,-180.87611261,8.252e-05,2]
[423025567,1779768639000,-167.62728596,8.252e-05,2]
[423025578,1779768639000,-500.0,8.493e-05,2]
[423025568,1779768639000,-537.6845,8.252e-05,2]
[423025569,1779768639000,-426.836,8.295e-05,2]
[423025571,1779768639000,-185.0,8.295e-05,2]
[423025557,1779768639000,-500.0,8.219e-05,2]
[423025577,1779768639000,-1000.0,8.47e-05,2]
[423025573,1779768639000,-3458.53153968,8.329e-05,2]
[423025590,1779768639000,-812.46,8.493e-05,2]
[423025584,1779768639000,-845.22,8.493e-05,2]
[423025582,1779768639000,-500.0,8.493e-05,2]
[423025581,1779768639000,-371.41,8.493e-05,2]
[423025580,1779768639000,-233.84704073,8.493e-05,2]
[423025588,1779768639000,-500.0,8.493e-05,2]
[423025572,1779768639000,-1538.66379254,8.329e-05,2]
[423025576,1779768639000,-189.196,8.382e-05,2]
[423025579,1779768639000,-500.0,8.493e-05,2]
[423025570,1779768639000,-742.0,8.295e-05,2]
[423025574,1779768639000,-151.0,8.366e-05,2]
[423025575,1779768639000,-462.0455289,8.366e-05,2]
[423025665,1779768640000,-500.0,8.767e-05,2]
[423025664,1779768640000,-500.0,8.767e-05,2]
[423025661,1779768640000,-500.0,8.767e-05,2]
[423025648,1779768640000,-655.22986498,8.767e-05,2]
[423025660,1779768640000,-812.46,8.767e-05,2]
[423025656,1779768640000,-500.0,8.767e-05,2]
[423025658,1779768640000,-500.0,8.767e-05,2]
[423025654,1779768640000,-500.0,8.767e-05,2]
[423025657,1779768640000,-500.0,8.767e-05,2]
[423025647,1779768640000,-406.84771453,8.639e-05,2]
[423025667,1779768640000,-500.0,8.767e-05,2]
[423025655,1779768640000,-2618.29854045,8.767e-05,2]
[423025666,1779768640000,-500.0,8.767e-05,2]
[423025671,1779768640000,-500.0,8.767e-05,2]
[423025663,1779768640000,-500.0,8.767e-05,2]
[423025659,1779768640000,-732.69,8.767e-05,2]
[423025668,1779768640000,-500.0,8.767e-05,2]
[423025670,1779768640000,-500.0,8.767e-05,2]
[423025669,1779768640000,-500.0,8.767e-05,2]
[423025673,1779768640000,-2174.22,8.767e-05,2]
[423025672,1779768640000,-794.94,8.767e-05,2]
[423025683,1779768640000,-667.53,8.767e-05,2]
[423025675,1779768640000,-631.88,8.767e-05,2]
[423025684,1779768640000,-641.85,8.767e-05,2]
[423025685,1779768640000,-500.0,8.767e-05,2]
[423025674,1779768640000,-1184.32,8.767e-05,2]
[423025649,1779768640000,-500.0,8.767e-05,2]
[423025662,1779768640000,-500.0,8.767e-05,2]
[423025650,1779768640000,-500.0,8.767e-05,2]
[423025618,1779768640000,-543.28,8.493e-05,2]
[423025652,1779768640000,-500.0,8.767e-05,2]
[423025620,1779768640000,-500.0,8.493e-05,2]
[423025628,1779768640000,-500.0,8.493e-05,2]
[423025629,1779768640000,-500.0,8.493e-05,2]
[423025631,1779768640000,-500.0,8.493e-05,2]
[423025630,1779768640000,-500.0,8.493e-05,2]
[423025632,1779768640000,-901.99,8.493e-05,2]
[423025679,1779768640000,-602.91,8.767e-05,2]
[423025623,1779768640000,-1382.83,8.493e-05,2]
[423025622,1779768640000,-1451.35,8.493e-05,2]
[423025627,1779768640000,-2425.5,8.493e-05,2]
[423025625,1779768640000,-768.14,8.493e-05,2]
[423025626,1779768640000,-500.0,8.493e-05,2]
[423025624,1779768640000,-531.75,8.493e-05,2]
[423025651,1779768640000,-500.0,8.767e-05,2]
[423025633,1779768640000,-500.0,8.493e-05,2]
[423025634,1779768640000,-500.0,8.493e-05,2]
[423025636,1779768640000,-500.0,8.493e-05,2]
[423025638,1779768640000,-13266.02,8.493e-05,2]
[423025645,1779768640000,-195.20536293,8.61e-05,2]
[423025644,1779768640000,-177.18312078,8.61e-05,7]
[423025641,1779768640000,-197.49756033,8.521e-05,5]
[423025642,1779768640000,-197.34911198,8.521e-05,2]
[423025637,1779768640000,-1145.4,8.493e-05,2]
[423025640,1779768640000,-494.11767632,8.493e-05,2]
[423025643,1779768640000,-152.4367815,8.61e-05,7]
[423025639,1779768640000,-500.0,8.493e-05,2]
[423025646,1779768640000,-182.70824619,8.61e-05,2]
[423025653,1779768640000,-845.22,8.767e-05,2]
[423025635,1779768640000,-500.0,8.493e-05,2]
[423025682,1779768640000,-1331.11,8.767e-05,2]
[423025621,1779768640000,-2635.43,8.493e-05,2]
[423025681,1779768640000,-500.0,8.767e-05,2]
[423025713,1779768640000,-500.0,8.8e-05,2]
[423025718,1779768640000,-500.0,9.041e-05,2]
[423025720,1779768640000,-500.0,9.041e-05,2]
[423025722,1779768640000,-500.0,9.041e-05,2]
[423025724,1779768640000,-500.0,9.041e-05,2]
[423025723,1779768640000,-500.0,9.041e-05,2]
[423025725,1779768640000,-500.0,9.041e-05,2]
[423025728,1779768640000,-500.0,9.041e-05,2]
[423025737,1779768640000,-500.0,9.041e-05,2]
[423025729,1779768640000,-377.84617773,9.041e-05,2]
[423025726,1779768640000,-732.69,9.041e-05,2]
[423025727,1779768640000,-812.46,9.041e-05,2]
[423025736,1779768640000,-500.0,9.041e-05,2]
[423025719,1779768640000,-500.0,9.041e-05,2]
[423025731,1779768640000,-500.0,9.041e-05,2]
[423025732,1779768640000,-500.0,9.041e-05,2]
[423025730,1779768640000,-500.0,9.041e-05,2]
[423025733,1779768640000,-500.0,9.041e-05,2]
[423025734,1779768640000,-500.0,9.041e-05,2]
[423025738,1779768640000,-500.0,9.041e-05,2]
[423025745,1779768640000,-602.91,9.041e-05,2]
[423025740,1779768640000,-2174.22,9.041e-05,2]
[423025746,1779768640000,-500.0,9.041e-05,2]
[423025739,1779768640000,-794.94,9.041e-05,2]
[423025743,1779768640000,-500.0,9.041e-05,2]
[423025741,1779768640000,-1184.32,9.041e-05,2]
[423025744,1779768640000,-837.05,9.041e-05,2]
[423025678,1779768640000,-837.05,8.767e-05,2]
[423025735,1779768640000,-500.0,9.041e-05,2]
[423025721,1779768640000,-845.22,9.041e-05,2]
[423025742,1779768640000,-631.88,9.041e-05,2]
[423025716,1779768640000,-152.0,9.04e-05,7]
[423025717,1779768640000,-500.0,9.041e-05,2]
[423025677,1779768640000,-500.0,8.767e-05,2]
[423025680,1779768640000,-500.0,8.767e-05,2]
[423025689,1779768640000,-379.84198481,8.767e-05,2]
[423025690,1779768640000,-500.0,8.767e-05,2]
[423025688,1779768640000,-870.31,8.767e-05,2]
[423025694,1779768640000,-1382.83,8.767e-05,2]
[423025691,1779768640000,-543.28,8.767e-05,2]
[423025687,1779768640000,-809.86,8.767e-05,2]
[423025692,1779768640000,-2635.43,8.767e-05,2]
[423025695,1779768640000,-531.75,8.767e-05,2]
[423025693,1779768640000,-1451.35,8.767e-05,2]
[423025696,1779768640000,-768.14,8.767e-05,2]
[423025698,1779768640000,-2425.5,8.767e-05,2]
[423025686,1779768640000,-624.03,8.767e-05,2]
[423025708,1779768640000,-500.0,8.767e-05,2]
[423025707,1779768640000,-500.0,8.767e-05,2]
[423025715,1779768640000,-216.21246379,8.981e-05,2]
[423025702,1779768640000,-500.0,8.767e-05,2]
[423025705,1779768640000,-500.0,8.767e-05,2]
[423025700,1779768640000,-500.0,8.767e-05,2]
[423025701,1779768640000,-500.0,8.767e-05,2]
[423025712,1779768640000,-500.0,8.767e-05,2]
[423025699,1779768640000,-500.0,8.767e-05,2]
[423025697,1779768640000,-500.0,8.767e-05,2]
[423025704,1779768640000,-901.99,8.767e-05,2]
[423025706,1779768640000,-500.0,8.767e-05,2]
[423025714,1779768640000,-1036.3263381,8.904e-05,2]
[423025710,1779768640000,-13266.02,8.767e-05,2]
[423025709,1779768640000,-1145.4,8.767e-05,2]
[423025787,1779768641000,-184.8493939,9.302e-05,7]
[423025774,1779768641000,-500.0,9.041e-05,2]
[423025776,1779768641000,-13266.02,9.041e-05,2]
[423025773,1779768641000,-500.0,9.041e-05,2]
[423025775,1779768641000,-1145.4,9.041e-05,2]
[423025778,1779768641000,-204.87499604,9.143e-05,2]
[423025784,1779768641000,-304.873563,9.302e-05,7]
[423025793,1779768641000,-500.0,9.315e-05,2]
[423025794,1779768641000,-845.22,9.315e-05,2]
[423025795,1779768641000,-500.0,9.315e-05,2]
[423025777,1779768641000,-500.0,9.041e-05,2]
[423025779,1779768641000,-151.0,9.188e-05,2]
[423025790,1779768641000,-500.0,9.315e-05,2]
[423025783,1779768641000,-394.69822396,9.209e-05,2]
[423025791,1779768641000,-500.0,9.315e-05,2]
[423025788,1779768641000,-365.41649238,9.302e-05,2]
[423025785,1779768641000,-354.36624155,9.302e-05,7]
[423025789,1779768641000,-202.58528714,9.302e-05,7]
[423025792,1779768641000,-500.0,9.315e-05,2]
[423025796,1779768641000,-500.0,9.315e-05,2]
[423025797,1779768641000,-500.0,9.315e-05,2]
[423025800,1779768641000,-812.46,9.315e-05,2]
[423025799,1779768641000,-732.69,9.315e-05,2]
[423025782,1779768641000,-394.99512066,9.209e-05,5]
[423025802,1779768641000,-500.0,9.315e-05,2]
[423025786,1779768641000,-390.41072586,9.302e-05,2]
[423025772,1779768641000,-500.0,9.041e-05,2]
[423025758,1779768641000,-135.40030128,9.041e-05,2]
[423025780,1779768641000,-500.48492267,9.2e-05,2]
[423025801,1779768641000,-500.0,9.315e-05,2]
[423025748,1779768641000,-1331.11,9.041e-05,2]
[423025749,1779768641000,-667.53,9.041e-05,2]
[423025747,1779768641000,-500.0,9.041e-05,2]
[423025751,1779768641000,-500.0,9.041e-05,2]
[423025752,1779768641000,-624.03,9.041e-05,2]
[423025753,1779768641000,-809.86,9.041e-05,2]
[423025750,1779768641000,-641.85,9.041e-05,2]
[423025755,1779768641000,-543.28,9.041e-05,2]
[423025757,1779768641000,-2500.02969872,9.041e-05,2]
[423025756,1779768641000,-500.0,9.041e-05,2]
[423025754,1779768641000,-870.31,9.041e-05,2]
[423025767,1779768641000,-500.0,9.041e-05,2]
[423025759,1779768641000,-1064.59969872,9.041e-05,2]
[423025762,1779768641000,-531.75,9.041e-05,2]
[423025768,1779768641000,-500.0,9.041e-05,2]
[423025761,1779768641000,-1382.83,9.041e-05,2]
[423025763,1779768641000,-768.14,9.041e-05,2]
[423025765,1779768641000,-2425.5,9.041e-05,2]
[423025760,1779768641000,-386.75030128,9.041e-05,2]
[423025766,1779768641000,-500.0,9.041e-05,2]
[423025764,1779768641000,-500.0,9.041e-05,2]
[423025769,1779768641000,-453.68814157,9.041e-05,2]
[423025770,1779768641000,-901.99,9.041e-05,2]
[423025781,1779768641000,-204.29520629,9.202e-05,7]
[423025771,1779768641000,-500.0,9.041e-05,2]
[423025803,1779768641000,-500.0,9.315e-05,2]
[423025798,1779768641000,-500.0,9.315e-05,2]
[423025804,1779768641000,-500.0,9.315e-05,2]
[423025825,1779768641000,-870.31,9.315e-05,2]
[423025837,1779768641000,-500.0,9.315e-05,2]
[423025835,1779768641000,-500.0,9.315e-05,2]
[423025848,1779768641000,-1276.57392126,9.361e-05,2]
[423025849,1779768641000,-175.0,9.5e-05,2]
[423025839,1779768641000,-500.0,9.315e-05,2]
[423025851,1779768641000,-151.86425629,9.554e-05,7]
[423025850,1779768641000,-38.94080824,9.529e-05,2]
[423025847,1779768641000,-244.0,9.317e-05,2]
[423025840,1779768641000,-443.733909,9.315e-05,2]
[423025838,1779768641000,-901.99,9.315e-05,2]
[423025841,1779768641000,-500.0,9.315e-05,2]
[423025844,1779768641000,-13266.02,9.315e-05,2]
[423025845,1779768641000,-500.0,9.315e-05,2]
[423025843,1779768641000,-1145.4,9.315e-05,2]
[423025846,1779768641000,-1000.0,9.317e-05,2]
[423025852,1779768641000,-221.38310215,9.554e-05,2]
[423025853,1779768641000,-202.71758067,9.554e-05,7]
[423025858,1779768641000,-500.0,9.589e-05,2]
[423025860,1779768641000,-500.0,9.589e-05,2]
[423025854,1779768641000,-217.17217727,9.554e-05,7]
[423025857,1779768641000,-1907.9466,9.589e-05,2]
[423025855,1779768641000,-198.01774679,9.554e-05,7]
[423025856,1779768641000,-1036.3263381,9.589e-05,2]
[423025859,1779768641000,-500.0,9.589e-05,2]
[423025834,1779768641000,-2425.5,9.315e-05,2]
[423025836,1779768641000,-500.0,9.315e-05,2]
[423025842,1779768641000,-500.0,9.315e-05,2]
[423025829,1779768641000,-1451.35,9.315e-05,2]
[423025833,1779768641000,-500.0,9.315e-05,2]
[423025807,1779768641000,-500.0,9.315e-05,2]
[423025805,1779768641000,-500.0,9.315e-05,2]
[423025809,1779768641000,-500.0,9.315e-05,2]
[423025806,1779768641000,-500.0,9.315e-05,2]
[423025808,1779768641000,-500.0,9.315e-05,2]
[423025821,1779768641000,-641.85,9.315e-05,2]
[423025811,1779768641000,-2174.22,9.315e-05,2]
[423025823,1779768641000,-624.03,9.315e-05,2]
[423025812,1779768641000,-1184.32,9.315e-05,2]
[423025810,1779768641000,-794.94,9.315e-05,2]
[423025819,1779768641000,-1331.11,9.315e-05,2]
[423025814,1779768641000,-500.0,9.315e-05,2]
[423025822,1779768641000,-500.0,9.315e-05,2]
[423025818,1779768641000,-500.0,9.315e-05,2]
[423025832,1779768641000,-768.14,9.315e-05,2]
[423025831,1779768641000,-531.75,9.315e-05,2]
[423025827,1779768641000,-500.0,9.315e-05,2]
[423025828,1779768641000,-2635.43,9.315e-05,2]
[423025824,1779768641000,-809.86,9.315e-05,2]
[423025826,1779768641000,-543.28,9.315e-05,2]
[423025830,1779768641000,-1382.83,9.315e-05,2]
[423025820,1779768641000,-667.53,9.315e-05,2]
[423025816,1779768641000,-602.91,9.315e-05,2]
[423025815,1779768641000,-837.05,9.315e-05,2]
[423025813,1779768641000,-631.88,9.315e-05,2]
[423025817,1779768641000,-584.06556571,9.315e-05,2]
[423025903,1779768642000,-500.0,9.589e-05,2]
[423025904,1779768642000,-500.0,9.589e-05,2]
[423025899,1779768642000,-768.14,9.589e-05,2]
[423025898,1779768642000,-531.75,9.589e-05,2]
[423025901,1779768642000,-2425.5,9.589e-05,2]
[423025897,1779768642000,-1382.83,9.589e-05,2]
[423025896,1779768642000,-1451.35,9.589e-05,2]
[423025894,1779768642000,-500.0,9.589e-05,2]
[423025907,1779768642000,-500.0,9.589e-05,2]
[423025906,1779768642000,-500.0,9.589e-05,2]
[423025905,1779768642000,-901.99,9.589e-05,2]
[423025895,1779768642000,-2635.43,9.589e-05,2]
[423025900,1779768642000,-500.0,9.589e-05,2]
[423025902,1779768642000,-500.0,9.589e-05,2]
[423025923,1779768642000,-273.4613888,9.762e-05,7]
[423025909,1779768642000,-1145.4,9.589e-05,2]
[423025911,1779768642000,-500.0,9.589e-05,2]
[423025910,1779768642000,-13266.02,9.589e-05,2]
[423025918,1779768642000,-531.54936233,9.762e-05,7]
[423025913,1779768642000,-592.492681,9.668e-05,5]
[423025912,1779768642000,-408.59041257,9.661e-05,7]
[423025915,1779768642000,-156.0,9.753e-05,2]
[423025914,1779768642000,-592.04733593,9.668e-05,2]
[423025920,1779768642000,-369.6987878,9.762e-05,7]
[423025916,1779768642000,-3887.0,9.753e-05,2]
[423025917,1779768642000,-457.3103445,9.762e-05,7]
[423025919,1779768642000,-585.61608878,9.762e-05,2]
[423025885,1779768642000,-500.0,9.589e-05,2]
[423025908,1779768642000,-500.0,9.589e-05,2]
[423025891,1779768642000,-809.86,9.589e-05,2]
[423025863,1779768642000,-500.0,9.589e-05,2]
[423025890,1779768642000,-624.03,9.589e-05,2]
[423025865,1779768642000,-500.0,9.589e-05,2]
[423025861,1779768642000,-500.0,9.589e-05,2]
[423025921,1779768642000,-548.12473857,9.762e-05,2]
[423025864,1779768642000,-500.0,9.589e-05,2]
[423025862,1779768642000,-845.22,9.589e-05,2]
[423025867,1779768642000,-732.69,9.589e-05,2]
[423025877,1779768642000,-500.0,9.589e-05,2]
[423025869,1779768642000,-500.0,9.589e-05,2]
[423025878,1779768642000,-794.94,9.589e-05,2]
[423025866,1779768642000,-500.0,9.589e-05,2]
[423025879,1779768642000,-2174.22,9.589e-05,2]
[423025868,1779768642000,-812.46,9.589e-05,2]
[423025870,1779768642000,-500.0,9.589e-05,2]
[423025874,1779768642000,-500.0,9.589e-05,2]
[423025871,1779768642000,-500.0,9.589e-05,2]
[423025876,1779768642000,-500.0,9.589e-05,2]
[423025875,1779768642000,-500.0,9.589e-05,2]
[423025873,1779768642000,-500.0,9.589e-05,2]
[423025872,1779768642000,-500.0,9.589e-05,2]
[423025880,1779768642000,-1184.32,9.589e-05,2]
[423025881,1779768642000,-631.88,9.589e-05,2]
[423025882,1779768642000,-500.0,9.589e-05,2]
[423025887,1779768642000,-641.85,9.589e-05,2]
[423025888,1779768642000,-667.53,9.589e-05,2]
[423025884,1779768642000,-602.91,9.589e-05,2]
[423025883,1779768642000,-837.05,9.589e-05,2]
[423025892,1779768642000,-870.31,9.589e-05,2]
[423025889,1779768642000,-500.0,9.589e-05,2]
[423025893,1779768642000,-543.28,9.589e-05,2]
[423025886,1779768642000,-1331.11,9.589e-05,2]
[423025925,1779768642000,-2908.45881592,9.8e-05,2]
[423025980,1779768642000,-500.0,9.863e-05,2]
[423025922,1779768642000,-405.17057429,9.762e-05,7]
[423025967,1779768642000,-500.0,9.863e-05,2]
[423025959,1779768642000,-1331.11,9.863e-05,2]
[423025962,1779768642000,-500.0,9.863e-05,2]
[423025961,1779768642000,-667.53,9.863e-05,2]
[423025960,1779768642000,-641.85,9.863e-05,2]
[423025963,1779768642000,-624.03,9.863e-05,2]
[423025965,1779768642000,-870.31,9.863e-05,2]
[423025966,1779768642000,-543.28,9.863e-05,2]
[423025964,1779768642000,-809.86,9.863e-05,2]
[423025971,1779768642000,-531.75,9.863e-05,2]
[423025974,1779768642000,-2425.5,9.863e-05,2]
[423025982,1779768642000,-500.0,9.863e-05,2]
[423025984,1779768642000,-13266.02,9.863e-05,2]
[423025969,1779768642000,-1451.35,9.863e-05,2]
[423025972,1779768642000,-768.14,9.863e-05,2]
[423025983,1779768642000,-1145.4,9.863e-05,2]
[423025977,1779768642000,-500.0,9.863e-05,2]
[423025979,1779768642000,-500.0,9.863e-05,2]
[423025978,1779768642000,-901.99,9.863e-05,2]
[423025976,1779768642000,-500.0,9.863e-05,2]
[423025986,1779768642000,-612.88561886,9.967e-05,7]
[423025985,1779768642000,-4541.79962361,9.94e-05,2]
[423025989,1779768642000,-789.39644791,9.973e-05,2]
[423025990,1779768642000,-546.9227776,9.974e-05,7]
[423025991,1779768642000,-50905.89236769,0.0001,2]
[423025987,1779768642000,-554.54818171,9.967e-05,7]
[423025988,1779768642000,-789.99024133,9.973e-05,5]
[423025924,1779768642000,-277.80935485,9.78e-05,4]
[423025975,1779768642000,-500.0,9.863e-05,2]
[423025970,1779768642000,-1382.83,9.863e-05,2]
[423025973,1779768642000,-500.0,9.863e-05,2]
[423025958,1779768642000,-500.0,9.863e-05,2]
[423025926,1779768642000,-1000.0,9.8e-05,2]
[423025968,1779768642000,-2635.43,9.863e-05,2]
[423025928,1779768642000,-500.0,9.863e-05,2]
[423025930,1779768642000,-500.0,9.863e-05,2]
[423025940,1779768642000,-732.69,9.863e-05,2]
[423025941,1779768642000,-812.46,9.863e-05,2]
[423025942,1779768642000,-500.0,9.863e-05,2]
[423025929,1779768642000,-500.0,9.863e-05,2]
[423025943,1779768642000,-500.0,9.863e-05,2]
[423025944,1779768642000,-500.0,9.863e-05,2]
[423025939,1779768642000,-500.0,9.863e-05,2]
[423025931,1779768642000,-500.0,9.863e-05,2]
[423025935,1779768642000,-500.0,9.863e-05,2]
[423025933,1779768642000,-500.0,9.863e-05,2]
[423025932,1779768642000,-845.22,9.863e-05,2]
[423025927,1779768642000,-1907.9466,9.863e-05,2]
[423025957,1779768642000,-602.91,9.863e-05,2]
[423025937,1779768642000,-500.0,9.863e-05,2]
[423025956,1779768642000,-837.05,9.863e-05,2]
[423025954,1779768642000,-631.88,9.863e-05,2]
[423025953,1779768642000,-1184.32,9.863e-05,2]
[423025946,1779768642000,-500.0,9.863e-05,2]
[423025952,1779768642000,-2174.22,9.863e-05,2]
[423025955,1779768642000,-500.0,9.863e-05,2]
[423025948,1779768642000,-500.0,9.863e-05,2]
[423025950,1779768642000,-500.0,9.863e-05,2]
[423025949,1779768642000,-500.0,9.863e-05,2]
[423025947,1779768642000,-500.0,9.863e-05,2]
[423025945,1779768642000,-500.0,9.863e-05,2]
[423025951,1779768642000,-794.94,9.863e-05,2]
[423026044,1779768643000,-600.96,0.00010034,2]
[423026036,1779768643000,-396.03549358,0.0001002,7]
[423026040,1779768643000,-244.29717962,0.0001002,7]
[423026042,1779768643000,-191.45188542,0.0001002,7]
[423026038,1779768643000,-152.32107434,0.0001002,2]
[423026027,1779768643000,-543.93,0.00010016,2]
[423026028,1779768643000,-205.0094497,0.0001002,7]
[423026031,1779768643000,-198.20858702,0.0001002,7]
[423026034,1779768643000,-434.34435455,0.0001002,7]
[423026030,1779768643000,-442.76620429,0.0001002,2]
[423026026,1779768643000,-703.1,0.00010016,2]
[423026056,1779768643000,-605.69,0.00010053,2]
[423026029,1779768643000,-303.72851258,0.0001002,7]
[423026033,1779768643000,-405.43516134,0.0001002,7]
[423026058,1779768643000,-167.05417197,0.00010067,3]
[423026048,1779768643000,-423.01,0.00010036,2]
[423026062,1779768643000,-708.7324831,0.0001007,7]
[423026064,1779768643000,-780.82145171,0.0001007,2]
[423026066,1779768643000,-730.83298476,0.0001007,2]
[423026068,1779768643000,-607.75586143,0.0001007,7]
[423026070,1779768643000,-555.6187097,0.00010088,4]
[423026054,1779768643000,-583.21,0.0001005,2]
[423026052,1779768643000,-499.59,0.00010043,2]
[423026046,1779768643000,-619.29,0.00010036,2]
[423026050,1779768643000,-436.8,0.00010042,2]
[423026072,1779768643000,-160.0,0.00010098,2]
[423026083,1779768643000,-647.266975,0.00010098,2]
[423026086,1779768643000,-160.0,0.00010098,2]
[423026087,1779768643000,-529.105303,0.00010098,2]
[423026060,1779768643000,-609.747126,0.0001007,7]
[423026017,1779768643000,-151.0,0.0001,2]
[423025995,1779768643000,-1000.0,0.0001,2]
[423026018,1779768643000,-151.0,0.0001,2]
[423026091,1779768643000,-357.564879,0.00010098,2]
[423025997,1779768643000,-160.0,0.0001,2]
[423025992,1779768643000,-3484.43743971,0.0001,2]
[423025993,1779768643000,-703.33410735,0.0001,7]
[423025996,1779768643000,-10046.48675023,0.0001,2]
[423025994,1779768643000,-1128.87821728,0.0001,10]
[423025999,1779768643000,-151.0,0.0001,2]
[423026000,1779768643000,-151.0,0.0001,2]
[423025998,1779768643000,-151.0,0.0001,2]
[423026001,1779768643000,-151.0,0.0001,2]
[423026002,1779768643000,-151.0,0.0001,2]
[423026005,1779768643000,-151.0,0.0001,2]
[423026006,1779768643000,-151.0,0.0001,2]
[423026004,1779768643000,-151.0,0.0001,2]
[423026010,1779768643000,-151.0,0.0001,2]
[423026007,1779768643000,-151.0,0.0001,2]
[423026011,1779768643000,-151.0,0.0001,2]
[423026012,1779768643000,-151.0,0.0001,2]
[423026009,1779768643000,-151.0,0.0001,2]